fUST/lending_fUST_20250815
["ID","MTS","AMOUNT","RATE_DAILY","PERIOD"]
[379241830,1755217838055,-541.59401487,0.00022,7]
[379241831,1755217838066,-501.44061613,0.00022,7]
[379241832,1755217838076,-1043.034631,0.00022,7]
[379241833,1755217838085,-151.0,0.00022,7]
[379241834,1755217838094,-1043.034631,0.00022,7]
[379241835,1755217838104,-151.0,0.00022,7]
[379241836,1755217838113,-1043.03463417,0.00022,7]
[379241837,1755217838122,-271.198645,0.00022,7]
[379241838,1755217838132,-421.85,0.00022,7]
[379241839,1755217838141,-1000.0,0.00022,2]
[379241840,1755217838150,-759.1840432,0.00022,2]
[379241845,1755217839629,-222.1452218,0.00022,2]
[379241846,1755217839639,-293.6437586,0.00022,2]
[379241847,1755217839648,-151.0,0.00022,2]
[379241848,1755217839658,-151.0,0.00022,2]
[379241849,1755217839668,-151.0,0.00022,7]
[379241850,1755217839677,-151.0,0.00022,2]
[379241851,1755217839686,-151.0,0.00022,7]
[379241852,1755217839694,-151.0,0.00022,7]
[379241853,1755217839706,-151.0,0.00022,2]
[379241854,1755217839716,-163.46456632,0.00022,2]
[379241855,1755217839725,-151.0,0.00022,2]
[379241856,1755217839734,-20.51355542,0.00022,2]
[379241857,1755217839746,-130.48644458,0.00022,2]
[379241858,1755217839755,-151.0,0.00022,7]
[379241859,1755217839764,-151.0,0.00022,7]
[379241860,1755217839774,-154.172595,0.00022,7]
[379241861,1755217839783,-159.480416,0.00022,7]
[379241862,1755217839792,-159.480416,0.00022,7]
[379241863,1755217839801,-159.480416,0.00022,7]
[379241864,1755217839813,-151.0,0.00022,7]
[379241865,1755217839822,-151.0,0.00022,7]
[379241866,1755217839831,-151.0,0.00022,7]
[379241867,1755217839840,-151.0,0.00022,7]
[379241868,1755217839850,-151.0,0.00022,7]
[379241869,1755217839860,-151.0,0.00022,7]
[379241870,1755217839869,-151.0,0.00022,7]
[379241871,1755217839878,-151.0,0.00022,7]
[379241872,1755217839892,-151.0,0.00022,7]
[379241873,1755217839901,-151.0,0.00022,7]
[379241874,1755217839910,-159.480416,0.00022,7]
[379241875,1755217839919,-159.480416,0.00022,7]
[379241876,1755217839929,-159.480416,0.00022,7]
[379241877,1755217839938,-151.0,0.00022,7]
[379241878,1755217839949,-218.11712398,0.00022,7]
[379241879,1755217839960,-151.0,0.00022,7]
[379241880,1755217839970,-151.566186,0.00022,7]
[379241881,1755217839980,-151.0,0.00022,7]
[379241882,1755217839989,-151.0,0.00022,7]
[379241883,1755217839999,-151.0,0.00022,7]
[379241884,1755217840008,-151.0,0.00022,7]
[379241885,1755217840017,-151.0,0.00022,7]
[379241886,1755217840027,-81.87515443,0.00022,7]
[379242052,1755217842855,-69.12484557,0.00022,7]
[379242055,1755217842864,-151.0,0.00022,7]
[379242057,1755217842874,-151.0,0.00022,7]
[379242059,1755217842884,-151.0,0.00022,3]
[379242061,1755217842896,-52.110615,0.00022,2]
[379242388,1755217932941,156.469909,0.00023,30]
[379242393,1755218226518,166.163777,0.00013699,2]
[379242398,1755218517875,302.0,0.00030137,120]
[379242404,1755218829138,-784.59058278,0.00019177,2]
[379242410,1755218929295,10000.0,0.00016438,2]
[379242411,1755218943252,8518.0,0.00016438,2]
[379242412,1755218947100,-300.0,0.00019176,2]
[379242413,1755218947123,-415.40941722,0.00019177,2]
[379242414,1755218947146,-2000.0,0.00019177,2]
[379242415,1755218947168,-2000.0,0.00019177,2]
[379242416,1755218947189,-2000.0,0.00019177,2]
[379242417,1755218947213,-2000.0,0.00019177,2]
[379242418,1755218947233,-2000.0,0.00019177,2]
[379242419,1755218947253,-1145.13,0.00019177,2]
[379242420,1755218947274,-215.59581046,0.00019177,2]
[379242421,1755218947294,-4569.80498378,0.00019178,2]
[379242428,1755218973132,-274.4,0.00019178,2]
[379242568,1755219036082,-155.79501622,0.00019178,2]
[379242569,1755219036092,-200.0,0.00019561,20]
[379242570,1755219036102,-200.0,0.00019561,20]
[379242571,1755219036111,-67.24433419,0.00019561,20]
[379242572,1755219036138,-132.75566581,0.00019561,20]
[379242573,1755219036155,-200.0,0.00019561,20]
[379242574,1755219036165,-200.0,0.00019561,20]
[379242575,1755219036175,-200.0,0.00019561,20]
[379242576,1755219036184,-300.0,0.00019832,2]
[379242577,1755219036196,-300.0,0.00019832,2]
[379242578,1755219036206,-300.0,0.00019832,2]
[379242579,1755219036218,-300.0,0.00019832,2]
[379242580,1755219036227,-300.0,0.00019832,2]
[379242581,1755219036237,-1200.0,0.00019832,2]
[379242582,1755219036246,-18.54433419,0.00019833,2]
[379242583,1755219036258,-481.45566581,0.00019833,2]
[379242584,1755219036267,-500.0,0.00019833,2]
[379242585,1755219036277,-505.1922163,0.00019833,2]
[379242586,1755219036287,-225.87216871,0.00019833,2]
[379242587,1755219036296,-500.0,0.00019833,2]
[379242588,1755219036306,-86.12071509,0.00019833,2]
[379242589,1755219036318,-413.87928491,0.00019833,2]
[379242590,1755219036327,-209.01178275,0.00019833,2]
[379242591,1755219036337,-500.0,0.00019833,2]
[379242592,1755219036346,-438.73923644,0.00019833,2]
[379242593,1755219036355,-500.0,0.00019833,2]
[379242594,1755219036364,-500.0,0.00019833,2]
[379242595,1755219036374,-500.0,0.00019833,2]
[379242596,1755219036383,-500.0,0.00019833,2]
[379242597,1755219036392,-500.0,0.00019986,2]
[379242598,1755219036401,-2894.93277049,0.00019986,2]
[379242599,1755219036412,-1255.02258706,0.00019986,2]
[379242613,1755219037890,-1072.02397009,0.00019986,2]
[379242614,1755219037902,-671.26294407,0.00019986,2]
[379242615,1755219037914,-908.23592004,0.00019986,2]
[379242616,1755219037925,-1071.305493,0.00019986,2]
[379242617,1755219037945,-2108.39254201,0.00019986,2]
[379242677,1755219039841,-4909.99023026,0.00019986,2]
[379242678,1755219039851,-260.55625013,0.00020084,2]
[379242679,1755219039862,-536.606791,0.00020306,2]
[379242680,1755219039871,-1000.0,0.00020381,2]
[379242681,1755219039881,-1000.0,0.00020381,2]
[379242682,1755219039890,-1000.0,0.00020381,2]
[379242683,1755219039900,-575.04094587,0.00020381,2]
[379242685,1755219039910,-799.0,0.00020381,2]
[379242687,1755219039919,-666.0,0.00020413,2]
[379242688,1755219039928,-500.43673049,0.0002046,2]
[379242690,1755219039937,-500.0,0.0002046,2]
[379242691,1755219039946,-500.0,0.0002046,2]
[379242692,1755219039955,-500.0,0.0002046,2]
[379242693,1755219039965,-500.0,0.0002046,2]
[379242694,1755219039974,-5000.0,0.00020622,2]
[379242695,1755219039984,-480.0,0.00020899,2]
[379242696,1755219039993,-1500.0,0.00020929,2]
[379242697,1755219040004,-579.75609334,0.00020929,2]
[379242698,1755219040014,-1500.0,0.00020929,2]
[379242699,1755219040024,-500.0,0.00021008,2]
[379242700,1755219040033,-689.2883973,0.00021008,2]
[379242701,1755219040045,-310.7116027,0.00021008,2]
[379242702,1755219040054,-500.0,0.00021082,2]
[379242703,1755219040063,-151.0,0.00021182,2]
[379242704,1755219040073,-500.89716526,0.00021229,2]
[379242705,1755219040082,-232.05637125,0.00021345,2]
[379242706,1755219040091,-843.37884167,0.00021345,2]
[379242707,1755219040101,-160.0,0.00021346,2]
[379242708,1755219040110,-216.75489391,0.00021346,2]
[379242709,1755219040119,-460.0,0.00021353,2]
[379242710,1755219040128,-500.0,0.00021386,2]
[379242711,1755219040141,-500.0,0.00021386,2]
[379242712,1755219040155,-408.0,0.00021418,2]
[379242713,1755219040164,-200.0,0.00021479,20]
[379242714,1755219040173,-200.0,0.00021479,20]
[379242715,1755219040182,-200.0,0.00021479,20]
[379242716,1755219040193,-200.0,0.00021479,20]
[379242717,1755219040203,-200.0,0.00021479,20]
[379242718,1755219040212,-200.0,0.00021479,20]
[379242719,1755219040223,-200.0,0.00021479,20]
[379242720,1755219040232,-280.0,0.00021479,20]
[379242721,1755219040241,-160.0,0.00021525,2]
[379242722,1755219040250,-1500.0,0.00021556,2]
[379242723,1755219040259,-151.0,0.00021591,3]
[379242724,1755219040268,-420.0,0.00021599,2]
[379242725,1755219040278,-420.0,0.00021599,2]
[379242726,1755219040287,-420.0,0.00021599,2]
[379242727,1755219040296,-393.0,0.00021599,2]
[379242728,1755219040306,-162.07389059,0.00021616,2]
[379242729,1755219040315,-460.0,0.00021627,2]
[379242730,1755219040324,-500.0,0.0002166,2]
[379242731,1755219040334,-1680.0,0.00021703,2]
[379242732,1755219040343,-155.412,0.00021746,2]
[379242733,1755219040352,-500.0,0.0002187,2]
[379242734,1755219040362,-976.74,0.00021899,2]
[379242735,1755219040371,-460.0,0.00021901,2]
[379242736,1755219040380,-555.52,0.00021917,2]
[379242737,1755219040390,-162.07389059,0.00021918,2]
[379242738,1755219040400,-200.37139539,0.00021918,2]
[379242739,1755219040410,-500.0,0.00021934,2]
[379242740,1755219040420,-500.0,0.00021975,2]
[379242741,1755219040429,-500.0,0.00021975,2]
[379242742,1755219040438,-500.0,0.00021975,2]
[379242743,1755219040448,-198.0430543,0.00021975,2]
[379242744,1755219040457,-500.0,0.00021975,2]
[379242745,1755219040467,-500.0,0.00021975,2]
[379242746,1755219040477,-500.0,0.00021975,2]
[379242747,1755219040486,-300.0,0.00021975,2]
[379242748,1755219040495,-341.77939621,0.00021975,2]
[379242749,1755219040504,-501.69634139,0.00021975,2]
[379242750,1755219040514,-500.0,0.00021975,2]
[379242751,1755219040523,-500.0,0.00021975,2]
[379242752,1755219040533,-500.0,0.00021975,2]
[379242753,1755219040542,-500.0,0.00021975,2]
[379242754,1755219040551,-500.0,0.00021975,2]
[379242755,1755219040560,-500.0,0.00021975,2]
[379242756,1755219040570,-500.0,0.00021975,2]
[379242757,1755219040579,-500.0,0.00021975,2]
[379242758,1755219040589,-502.76910957,0.00021975,2]
[379242759,1755219040599,-500.0,0.00021975,2]
[379242760,1755219040608,-3154.45963685,0.00021983,2]
[379242761,1755219040619,-151.0,0.00022,7]
[379242762,1755219040628,-151.0,0.00022,7]
[379242763,1755219040638,-151.0,0.00022,7]
[379242764,1755219040647,-151.0,0.00022,7]
[379242765,1755219040656,-151.0,0.00022,7]
[379242766,1755219040665,-151.0,0.00022,7]
[379242767,1755219040674,-151.0,0.00022,7]
[379242768,1755219040683,-176.382352,0.00022,7]
[379242769,1755219040692,-151.0,0.00022,7]
[379242770,1755219040702,-151.0,0.00022,7]
[379242771,1755219040712,-151.0,0.00022,7]
[379242772,1755219040722,-151.0,0.00022,7]
[379242773,1755219040731,-151.0,0.00022,7]
[379242774,1755219040740,-151.0,0.00022,7]
[379242775,1755219040749,-153.182065,0.00022,7]
[379242776,1755219040759,-151.0,0.00022,3]
[379242777,1755219040768,-189.02863173,0.00022,7]
[379242778,1755219040778,-151.0,0.00022,7]
[379242779,1755219040787,-151.0,0.00022,7]
[379242780,1755219040796,-151.0,0.00022,7]
[379242781,1755219040805,-151.0,0.00022,7]
[379242782,1755219040815,-198.64985678,0.00022,7]
[379242783,1755219040824,-151.0,0.00022,2]
[379242784,1755219040833,-151.0,0.00022,7]
[379242785,1755219040842,-151.0,0.00022,7]
[379242786,1755219040851,-151.0,0.00022,7]
[379242787,1755219040863,-151.0,0.00022,7]
[379242788,1755219040872,-474.34,0.00022,2]
[379242789,1755219040881,-260.0,0.00022073,2]
[379242790,1755219040890,-151.0,0.00022169,7]
[379242791,1755219040899,-555.52,0.00022173,2]
[379242792,1755219040908,-976.74,0.00022173,2]
[379242793,1755219040917,-460.0,0.00022175,2]
[379242794,1755219040926,-500.0,0.00022178,2]
[379242795,1755219040935,-162.07389059,0.00022192,2]
[379242796,1755219040944,-183.97517,0.00022192,7]
[379242797,1755219040953,-183.97517,0.00022192,7]
[379242798,1755219040963,-1147.355494,0.00022219,7]
[379242799,1755219040973,-1147.355494,0.00022219,7]
[379242800,1755219040982,-151.0,0.00022219,7]
[379242801,1755219040992,-574.0,0.00022219,7]
[379242802,1755219041001,-241.74788118,0.00022219,7]
[379242803,1755219041010,-151.0,0.00022219,7]
[379242804,1755219041019,-151.0,0.00022219,7]
[379242805,1755219041028,-204.71729665,0.00022219,7]
[379242806,1755219041037,-220.99912319,0.00022219,7]
[379242807,1755219041045,-254.0903166,0.00022219,7]
[379242808,1755219041055,-500.0,0.00022262,2]
[379242809,1755219041064,-276.09965549,0.00022262,2]
[379242810,1755219041073,-500.0,0.00022262,2]
[379242811,1755219041082,-500.0,0.00022262,2]
[379242812,1755219041091,-500.0,0.00022262,2]
[379242813,1755219041101,-500.0,0.00022262,2]
[379242814,1755219041110,-597.17605918,0.00022262,2]
[379242815,1755219041120,-398.78486814,0.00022262,2]
[379242816,1755219041129,-500.0,0.00022262,2]
[379242817,1755219041141,-500.0,0.00022262,2]
[379242818,1755219041154,-500.0,0.00022262,2]
[379242819,1755219041164,-500.0,0.00022262,2]
[379242820,1755219041173,-365.01932247,0.00022262,2]
[379242821,1755219041183,-500.0,0.00022262,2]
[379242822,1755219041200,-500.0,0.00022262,2]
[379242823,1755219041210,-500.0,0.00022262,2]
[379242824,1755219041222,-368.15126948,0.00022262,2]
[379242825,1755219041232,-371.13631806,0.00022262,2]
[379242826,1755219041241,-500.0,0.00022262,2]
[379242827,1755219041250,-500.0,0.00022262,2]
[379242828,1755219041260,-500.0,0.00022262,2]
[379242829,1755219041269,-409.96816573,0.00022262,2]
[379242830,1755219041278,-151.0,0.00022263,7]
[379242831,1755219041287,-151.0,0.00022263,3]
[379242832,1755219041297,-151.4706338,0.00022263,3]
[379242833,1755219041306,-198.35421511,0.00022263,2]
[379242834,1755219041315,-198.29692576,0.00022263,3]
[379242835,1755219041325,-151.0,0.00022274,7]
[379242836,1755219041334,-151.0,0.00022274,7]
[379242837,1755219041344,-151.0,0.00022274,7]
[379242838,1755219041353,-151.0,0.00022274,7]
[379242839,1755219041363,-151.0,0.00022274,7]
[379242840,1755219041372,-151.0,0.000223,7]
[379242841,1755219041382,-1908.23448712,0.00022347,2]
[379242842,1755219041391,-272.0,0.00022353,2]
[379242843,1755219041400,-692.05,0.00022369,2]
[379242844,1755219041410,-151.0,0.000224,7]
[379242845,1755219041419,-500.0,0.00022418,2]
[379242846,1755219041428,-555.52,0.00022447,2]
[379242847,1755219041437,-976.74,0.00022447,2]
[379242848,1755219041447,-460.0,0.00022449,2]
[379242849,1755219041456,-201.20125441,0.00022466,7]
[379242850,1755219041465,-1908.2344871,0.00022485,2]
[379242851,1755219041475,-574.0,0.00022493,7]
[379242852,1755219041484,-151.0,0.00022493,7]
[379242853,1755219041493,-162.07389059,0.00022493,2]
[379242854,1755219041502,-1011.21250107,0.000225,2]
[379242855,1755219041511,-160.0,0.000225,3]
[379242856,1755219041521,-161.22433689,0.000225,5]
[379242857,1755219041530,-500.0,0.000225,2]
[379242858,1755219041540,-166.163777,0.00022505,2]
[379242859,1755219041549,-1000.0,0.00022523,2]
[379242860,1755219041558,-500.0,0.00022523,2]
[379242861,1755219041568,-1000.0,0.00022523,2]
[379242862,1755219041577,-1000.0,0.00022523,2]
[379242863,1755219041587,-1000.0,0.00022523,2]
[379242864,1755219041596,-1000.0,0.00022523,2]
[379242865,1755219041605,-1000.0,0.00022523,2]
[379242866,1755219041615,-1000.0,0.00022523,2]
[379242867,1755219041624,-1000.0,0.00022523,2]
[379242868,1755219041638,-1000.0,0.00022523,2]
[379242869,1755219041647,-1000.0,0.00022523,2]
[379242870,1755219041656,-1000.0,0.00022523,2]
[379242871,1755219041665,-151.0,0.00022537,3]
[379242872,1755219041674,-151.0,0.00022548,7]
[379242873,1755219041683,-151.0,0.00022548,7]
[379242874,1755219041692,-151.0,0.00022548,7]
[379242875,1755219041701,-151.0,0.00022552,7]
[379242876,1755219041711,-346.76,0.00022552,3]
[379242877,1755219041721,-33181.73962933,0.00022562,2]
[379242878,1755219041731,-151.0,0.00022569,7]
[379242879,1755219041739,-151.0,0.00022569,7]
[379242880,1755219041748,-250.0,0.00022571,2]
[379242881,1755219041757,-500.0,0.00022573,2]
[379242882,1755219041766,-500.0,0.00022573,2]
[379242883,1755219041775,-500.0,0.00022573,2]
[379242884,1755219041784,-500.0,0.00022573,2]
[379242885,1755219041793,-500.0,0.00022573,2]
[379242886,1755219041802,-183.97517,0.00022602,7]
[379242887,1755219041811,-183.97517,0.00022602,7]
[379242888,1755219041821,-1147.355494,0.00022602,7]
[379242889,1755219041831,-1147.355494,0.00022602,7]
[379242890,1755219041840,-151.0,0.00022602,7]
[379242891,1755219041850,-360.0,0.00022621,2]
[379242892,1755219041859,-500.0,0.00022661,2]
[379242893,1755219041868,-268.77370142,0.00022661,2]
[379242894,1755219041877,-586.29236866,0.00022661,2]
[379242895,1755219041886,-500.0,0.00022661,2]
[379242896,1755219041895,-188.14159099,0.00022661,2]
[379242897,1755219041903,-865.76839869,0.00022662,2]
[379242898,1755219041912,-204963.71885299,0.00022662,2]
[379242899,1755219041922,-160.936614,0.00022662,7]
[379242900,1755219041930,-151.0,0.00022662,7]
[379242901,1755219041939,-151.0,0.00022662,7]
[379242902,1755219041949,-500.0,0.00022673,2]
[379242903,1755219041957,-500.0,0.00022673,2]
[379242904,1755219041970,-500.0,0.00022673,2]
[379242905,1755219041979,-500.0,0.00022673,2]
[379242906,1755219041988,-500.0,0.00022673,2]
[379242907,1755219041997,-5000.0,0.00022702,2]
[379242908,1755219042006,-5000.0,0.00022702,2]
[379242909,1755219042015,-5000.0,0.00022702,2]
[379242910,1755219042024,-4761.78164886,0.00022702,2]
[379242916,1755219042470,453.0,0.00030137,120]
[379242918,1755219043081,-6923.7,0.00022552,10]
[379242919,1755219043091,-1908.2344871,0.00022624,2]
[379242920,1755219043100,-238.21835114,0.00022702,2]
[379242921,1755219043109,-5000.0,0.00022702,2]
[379242922,1755219043119,-151.0,0.00022702,7]
[379242923,1755219043128,-247.537711,0.00022702,7]
[379242924,1755219043138,-183.97517,0.00022702,7]
[379242925,1755219043151,-183.97517,0.00022702,7]
[379242926,1755219043160,-1147.355494,0.00022702,7]
[379242927,1755219043170,-1147.355494,0.00022702,7]
[379242928,1755219043180,-151.0,0.00022702,7]
[379242929,1755219043192,-151.0,0.00022702,7]
[379242930,1755219043201,-151.0,0.00022702,7]
[379242931,1755219043210,-287.972974,0.00022702,7]
[379242932,1755219043222,-237.473053,0.00022702,7]
[379242933,1755219043231,-160.0,0.00022702,7]
[379242934,1755219043241,-151.0,0.00022702,7]
[379242935,1755219043250,-151.0,0.00022702,7]
[379242936,1755219043261,-555.52,0.00022721,2]
[379242937,1755219043271,-976.74,0.00022721,2]
[379242938,1755219043291,-460.0,0.00022723,2]
[379242939,1755219043311,-183.97517,0.00022745,7]
[379242940,1755219043321,-183.97517,0.00022745,7]
[379242941,1755219043331,-1147.355494,0.00022745,7]
[379242942,1755219043341,-1147.355494,0.00022745,7]
[379242943,1755219043351,-151.0,0.00022745,7]
[379242944,1755219043361,-151.0,0.00022745,7]
[379242945,1755219043371,-274.064364,0.00022745,7]
[379242946,1755219043380,-151.0,0.00022745,7]
[379242947,1755219043389,-151.0,0.00022745,7]
[379242948,1755219043399,-5000.0,0.00022745,2]
[379242949,1755219043411,-1908.2344871,0.00022762,2]
[379242950,1755219043426,-151.0,0.00022762,7]
[379242951,1755219043440,-151.0,0.00022762,7]
[379242952,1755219043449,-5000.0,0.00022762,2]
[379242953,1755219043459,-574.0,0.00022767,7]
[379242954,1755219043471,-294.08646877,0.00022767,7]
[379242955,1755219043481,-162.07389059,0.00022767,2]
[379242956,1755219043491,-500.0,0.00022773,2]
[379242957,1755219043501,-465.55864581,0.00022773,2]
[379242958,1755219043511,-500.0,0.00022773,2]
[379242959,1755219043521,-500.0,0.00022773,2]
[379242960,1755219043530,-500.0,0.00022773,2]
[379242961,1755219043540,-500.0,0.00022773,2]
[379242962,1755219043550,-150.0,0.00022773,2]
[379242963,1755219043559,-500.0,0.00022773,2]
[379242964,1755219043568,-151.0,0.0002278,7]
[379242965,1755219043576,-151.0,0.0002278,7]
[379242966,1755219043585,-151.0,0.00022789,7]
[379242967,1755219043594,-379.67,0.000228,7]
[379242968,1755219043602,-151.0,0.00022822,7]
[379242969,1755219043611,-151.0,0.00022822,7]
[379242970,1755219043620,-198.0,0.00022822,7]
[379242971,1755219043628,-1560.738017,0.0002286,5]
[379242972,1755219043637,-151.0,0.00022865,7]
[379242973,1755219043646,-151.0,0.00022872,7]
[379242974,1755219043655,-151.0,0.00022875,7]
[379242975,1755219043664,-151.0,0.00022875,7]
[379242976,1755219043673,-151.0,0.00022875,7]
[379242977,1755219043682,-151.0,0.00022875,7]
[379242978,1755219043692,-160.0,0.00022875,3]
[379242979,1755219043701,-183.97517,0.0002288,7]
[379242980,1755219043710,-183.97517,0.0002288,7]
[379242981,1755219043720,-1147.355494,0.0002288,7]
[379242982,1755219043729,-1147.355494,0.0002288,7]
[379242983,1755219043745,-1000.0,0.0002288,5]
[379242984,1755219043753,-151.0,0.00022882,7]
[379242985,1755219043762,-800.0,0.00022899,2]
[379242986,1755219043771,-254.0,0.000229,7]
[379242987,1755219043780,-1147.355494,0.000229,7]
[379242988,1755219043789,-1147.35549,0.000229,7]
[379242989,1755219043798,-1000.0,0.000229,5]
[379242990,1755219043807,-24040.59112898,0.000229,3]
[379242991,1755219043816,-403.978986,0.000229,10]
[379242992,1755219043825,-215.24670717,0.000229,3]
[379242993,1755219043833,-151.0,0.00022914,7]
[379242994,1755219043842,-1000.0,0.0002292,5]
[379242995,1755219043851,-160.0,0.00022931,7]
[379242996,1755219043860,-1000.0,0.0002294,5]
[379242997,1755219043869,-1000.0,0.0002296,5]
[379242998,1755219043878,-591.6405598,0.00022973,2]
[379242999,1755219043887,-500.0,0.00022973,2]
[379243000,1755219043896,-500.0,0.00022973,2]
[379243001,1755219043905,-157.10580249,0.00022973,2]
[379243002,1755219043916,-150.0,0.00022973,2]
[379243003,1755219043928,-1000.0,0.00022973,2]
[379243004,1755219043937,-183.97517,0.00022973,7]
[379243005,1755219043947,-183.97517,0.00022973,7]
[379243006,1755219043956,-151.0,0.0002298,7]
[379243007,1755219043967,-1000.0,0.0002298,5]
[379243008,1755219043976,-151.0,0.0002298,7]
[379243009,1755219043986,-151.0,0.0002298,7]
[379243010,1755219043995,-1761.0,0.00022981,3]
[379243011,1755219044004,-1761.0,0.00022981,3]
[379243012,1755219044014,-1761.0,0.00022981,3]
[379243013,1755219044023,-1208.33469865,0.00022981,3]
[379243014,1755219044033,-170.1117116,0.00022987,3]
[379243015,1755219044043,-326.0,0.00022987,3]
[379243016,1755219044053,-326.0,0.00022987,3]
[379243017,1755219044062,-326.0,0.00022987,3]
[379243018,1755219044071,-326.0,0.00022987,3]
[379243019,1755219044080,-326.0,0.00022987,3]
[379243020,1755219044090,-326.0,0.00022987,3]
[379243021,1755219044099,-219.63494925,0.00022987,3]
[379243022,1755219044108,-555.52,0.00022995,2]
[379243023,1755219044118,-976.74,0.00022995,2]
[379243024,1755219044128,-460.0,0.00022996,2]
[379243025,1755219044138,-160.0,0.00023,2]
[379243026,1755219044151,-160.0,0.00023,3]
[379243027,1755219044160,-160.0,0.00023,3]
[379243028,1755219044169,-5709.19427085,0.00023,14]
[379243029,1755219044178,-843.37884167,0.00023,3]
[379243030,1755219044189,-1600.93113425,0.00023,2]
[379243031,1755219044198,-160.0,0.00023,3]
[379243032,1755219044208,-151.0,0.00023,7]
[379243033,1755219044221,-151.0,0.00023,7]
[379243034,1755219044231,-2042.16989317,0.00023,2]
[379243035,1755219044241,-4607.85349573,0.00023,7]
[379243036,1755219044250,-8068.58162805,0.00023,7]
[379243057,1755219045920,-1908.2344871,0.000229,2]
[379243058,1755219045931,-2952.71729709,0.00023,7]
[379243059,1755219045973,-11240.73256612,0.00023,7]
[379243067,1755219181800,166.163777,0.00013699,2]
[379243075,1755219938117,-300.0,0.00019985,2]
[379243076,1755219938138,-5.74175899,0.00019985,2]
[379243079,1755220054086,-616.88669304,0.000189,2]
[379243080,1755220054105,-522.17655164,0.00019885,4]
[379243081,1755220054125,-160.0,0.00019984,2]
[379243082,1755220054146,-845.25824101,0.00019985,2]
[379243083,1755220054166,-461.9529908,0.00019985,2]
[379243084,1755220054186,-300.0,0.00019985,2]
[379243085,1755220054206,-172.09867199,0.00019986,2]
[379243087,1755220129379,166.163777,0.00013699,2]
[379243117,1755220232276,-225.0,0.00019985,2]
[379243120,1755220232286,-300.0,0.00019985,2]
[379243122,1755220232296,-125.83690857,0.00019986,2]
[379243125,1755220232333,-202.06441944,0.00019986,2]
[379243127,1755220232343,-500.0,0.00019986,2]
[379243129,1755220232353,-383.47598822,0.00019986,2]
[379243147,1755220237964,-116.52401178,0.00019986,2]
[379243148,1755220237974,-500.0,0.00019986,2]
[379243149,1755220237983,-500.0,0.00019986,2]
[379243150,1755220237992,-200.0,0.00020385,20]
[379243151,1755220238002,-200.0,0.00020385,20]
[379243152,1755220238011,-200.0,0.00020385,20]
[379243154,1755220238021,-200.0,0.00020385,20]
[379243155,1755220238030,-200.0,0.00020385,20]
[379243157,1755220238039,-200.0,0.00020385,20]
[379243158,1755220238048,-200.0,0.00020385,20]
[379243159,1755220238058,-89.63799132,0.00020385,20]
[379243161,1755220238069,-110.36200868,0.00020385,20]
[379243163,1755220238078,-500.0,0.00021082,2]
[379243165,1755220238090,-429.285432,0.00021119,2]
[379243166,1755220238099,-500.0,0.000212,2]
[379243168,1755220238109,-285.6201022,0.00021358,2]
[379243170,1755220238118,-232.05637125,0.00021497,2]